fUSD/lending_fUSD_20240212
["ID","MTS","AMOUNT","RATE_DAILY","PERIOD"]
[313798552,1707729050990,-500.0,0.00022887,2]
[313798553,1707729051000,-1009.01,0.00022887,2]
[313798554,1707729051009,-500.0,0.00022887,2]
[313798555,1707729051019,-500.0,0.00022887,2]
[313798556,1707729051028,-500.0,0.00022887,2]
[313798557,1707729051038,-822.95,0.00022887,2]
[313798558,1707729051049,-500.0,0.00022887,2]
[313798559,1707729051058,-952.13,0.00022887,2]
[313798560,1707729051068,-500.0,0.00022887,2]
[313798561,1707729051078,-500.0,0.00022887,2]
[313798562,1707729051088,-689.32,0.00022887,2]
[313798563,1707729051098,-319.72009087,0.00022887,2]
[313798564,1707729051184,-236.60990913,0.00022887,2]
[313798565,1707729051194,-175.13940177,0.00022887,2]
[313798566,1707729051206,-324.86059823,0.00022887,2]
[313798567,1707729051216,-659.26,0.00022887,2]
[313798568,1707729051225,-563.16,0.00022887,2]
[313798569,1707729051235,-979.63,0.00022887,2]
[313798570,1707729051245,-500.0,0.00022887,2]
[313798571,1707729051255,-500.0,0.00022887,2]
[313798572,1707729051264,-1028.24,0.00022887,2]
[313798573,1707729051273,-432.50489843,0.00022887,2]
[313798574,1707729051296,-67.49510157,0.00022887,2]
[313798575,1707729051306,-928.16,0.00022887,2]
[313798576,1707729051316,-542.40559204,0.00022887,2]
[313798577,1707729051325,-500.0,0.00022887,2]
[313798578,1707729051336,-853.63,0.00022887,2]
[313798579,1707729051346,-500.0,0.00022887,2]
[313798580,1707729051355,-905.03,0.00022887,2]
[313798581,1707729051365,-850.37,0.00022887,2]
[313798582,1707729051375,-500.0,0.00022887,2]
[313798583,1707729051385,-508.47,0.00022887,2]
[313798584,1707729051395,-500.0,0.00022887,2]
[313798585,1707729051404,-500.0,0.00022887,2]
[313798586,1707729051414,-543.88,0.00022887,2]
[313798587,1707729051424,-500.0,0.00022887,2]
[313798588,1707729051435,-781.43,0.00022887,2]
[313798589,1707729051445,-500.0,0.00022887,2]
[313798590,1707729051455,-500.0,0.00022887,2]
[313798591,1707729051465,-500.0,0.00022887,2]
[313798592,1707729051474,-500.0,0.00022887,2]
[313798593,1707729051484,-500.0,0.00022887,2]
[313798594,1707729051494,-500.0,0.00022887,2]
[313798595,1707729051504,-727.92,0.00022887,2]
[313798596,1707729051514,-500.0,0.00022887,2]
[313798597,1707729051524,-500.0,0.00022887,2]
[313798598,1707729051534,-683.67,0.00022887,2]
[313798599,1707729051544,-500.0,0.00022887,2]
[313798600,1707729051554,-2118.39,0.00022887,2]
[313798601,1707729051564,-500.0,0.00022887,2]
[313798602,1707729051574,-564.95355801,0.00022887,2]
[313798603,1707729051583,-500.0,0.00022887,2]
[313798604,1707729051593,-500.0,0.00022887,2]
[313798605,1707729051603,-145.97602934,0.00022887,2]
[313798606,1707729051621,-354.02397066,0.00022887,2]
[313798607,1707729051631,-103.11898071,0.00022887,2]
[313798608,1707729051695,-584.14,0.00022612,2]
[313798609,1707729051705,-396.88101929,0.00022887,2]
[313798610,1707729051715,-98.67742298,0.00022887,2]
[313798611,1707729051781,-584.14,0.00022886,2]
[313798612,1707729051791,-401.32257702,0.00022887,2]
[313798613,1707729051801,-1246.5,0.00022887,2]
[313798614,1707729051810,-924.23,0.00022887,2]
[313798615,1707729051820,-519.06,0.00022887,2]
[313798616,1707729051830,-623.58,0.00022887,2]
[313798617,1707729051840,-1066.94,0.00022887,2]
[313798618,1707729051850,-500.0,0.00022887,2]
[313798619,1707729051861,-1134.34,0.00022887,2]
[313798620,1707729051871,-720.55,0.00022887,2]
[313798621,1707729051881,-949.65,0.00022887,2]
[313798622,1707729051902,-590.16,0.00022887,2]
[313798623,1707729051933,-500.0,0.00022887,2]
[313798624,1707729051943,-567.57,0.00022887,2]
[313798625,1707729051952,-851.63,0.00022887,2]
[313798626,1707729051962,-500.0,0.00022887,2]
[313798627,1707729051972,-500.0,0.00022887,2]
[313798628,1707729051982,-500.0,0.00022887,2]
[313798629,1707729051991,-500.0,0.00022887,2]
[313798630,1707729052000,-1421.06,0.00022887,2]
[313798631,1707729052010,-927.01,0.00022887,2]
[313798632,1707729052020,-500.0,0.00022887,2]
[313798633,1707729052029,-917.07,0.00022887,2]
[313798634,1707729052038,-500.0,0.00022887,2]
[313798635,1707729052047,-644.69,0.00022887,2]
[313798636,1707729052056,-500.0,0.00022887,2]
[313798637,1707729052066,-500.0,0.00022887,2]
[313798638,1707729052075,-500.0,0.00022887,2]
[313798639,1707729052084,-750.8,0.00022887,2]
[313798640,1707729052094,-500.0,0.00022887,2]
[313798641,1707729052103,-1332.38,0.00022887,2]
[313798642,1707729052112,-500.0,0.00022887,2]
[313798643,1707729052122,-904.95,0.00022887,2]
[313798644,1707729052131,-934.01,0.00022887,2]
[313798645,1707729052141,-854.84,0.00022887,2]
[313798646,1707729052150,-575.38,0.00022887,2]
[313798647,1707729052160,-1214.89,0.00022887,2]
[313798648,1707729052170,-976.8,0.00022887,2]
[313798649,1707729052180,-207.55286635,0.00022887,2]
[313798650,1707729052189,-448.08554165,0.00022887,2]
[313798651,1707729052199,-944.05,0.00022887,2]
[313798652,1707729052208,-13.71115684,0.00022887,2]
[313798653,1707729052222,-486.28884316,0.00022887,2]
[313798654,1707729052231,-922.11,0.00022887,2]
[313798655,1707729052240,-500.0,0.00022887,2]
[313798656,1707729052250,-546.47,0.00022887,2]
[313798657,1707729052259,-500.0,0.00022887,2]
[313798658,1707729052268,-8204.9,0.00022887,2]
[313798659,1707729052278,-500.0,0.00022887,2]
[313798660,1707729052289,-500.0,0.00022887,2]
[313798661,1707729052299,-500.0,0.00022887,2]
[313798662,1707729052308,-1277.92,0.00022887,2]
[313798663,1707729052318,-500.0,0.00022887,2]
[313798664,1707729052327,-500.0,0.00022887,2]
[313798665,1707729052337,-500.0,0.00022887,2]
[313798666,1707729052346,-500.0,0.00022887,2]
[313798667,1707729052356,-3626.97,0.00022887,2]
[313798668,1707729052365,-1106.44,0.00022887,2]
[313798669,1707729052375,-500.0,0.00022887,2]
[313798670,1707729052384,-500.0,0.00022887,2]
[313798671,1707729052394,-500.0,0.00022887,2]
[313798672,1707729052404,-1547.48,0.00022887,2]
[313798673,1707729052413,-713.23,0.00022887,2]
[313798674,1707729052423,-1367.23,0.00022887,2]
[313798675,1707729052432,-500.0,0.00022887,2]
[313798676,1707729052441,-500.0,0.00022887,2]
[313798677,1707729052451,-500.0,0.00022887,2]
[313798678,1707729052461,-500.0,0.00022887,2]
[313798679,1707729052693,-531.26,0.00022887,2]
[313798680,1707729052702,-500.0,0.00022887,2]
[313798681,1707729052711,-625.35,0.00022887,2]
[313798682,1707729052721,-500.0,0.00022887,2]
[313798683,1707729052731,-3177.42,0.00022887,2]
[313798684,1707729052740,-1768.1258619,0.00022887,2]
[313798685,1707729052754,-2387.8341381,0.00022887,2]
[313798686,1707729052766,-500.0,0.00022887,2]
[313798687,1707729052775,-500.0,0.00022887,2]
[313798688,1707729052784,-500.0,0.00022887,2]
[313798689,1707729052794,-500.0,0.00022887,2]
[313798690,1707729052804,-500.0,0.00022887,2]
[313798691,1707729052814,-500.0,0.00022887,2]
[313798692,1707729052823,-500.0,0.00022887,2]
[313798693,1707729052832,-500.0,0.00022887,2]
[313798694,1707729052844,-500.0,0.00022887,2]
[313798695,1707729052854,-500.0,0.00022887,2]
[313798696,1707729052864,-577.29,0.00022887,2]
[313798697,1707729052874,-500.0,0.00022887,2]
[313798698,1707729052883,-617.28,0.00022887,2]
[313798699,1707729052892,-947.0,0.00022887,2]
[313798700,1707729052901,-273.03447574,0.00022887,2]
[313798701,1707729052911,-500.0,0.00022887,2]
[313798702,1707729052920,-500.0,0.00022887,2]
[313798703,1707729052929,-500.0,0.00022887,2]
[313798704,1707729052938,-2820.72,0.00022887,2]
[313798705,1707729052947,-500.0,0.00022887,2]
[313798706,1707729052957,-500.0,0.00022887,2]
[313798707,1707729052967,-523.04,0.00022887,2]
[313798708,1707729052976,-500.0,0.00022887,2]
[313798709,1707729052986,-903.35,0.00022887,2]
[313798710,1707729052995,-500.0,0.00022887,2]
[313798711,1707729053004,-500.0,0.00022887,2]
[313798712,1707729053013,-740.51,0.00022887,2]
[313798713,1707729053022,-1143.13,0.00022887,2]
[313798714,1707729053031,-1427.92,0.00022887,2]
[313798715,1707729053040,-1446.23,0.00022887,2]
[313798716,1707729053050,-500.0,0.00022887,2]
[313798717,1707729053059,-500.0,0.00022887,2]
[313798718,1707729053069,-622.51,0.00022887,2]
[313798719,1707729053078,-531.64,0.00022887,2]
[313798720,1707729053087,-500.0,0.00022887,2]
[313798721,1707729053096,-500.0,0.00022887,2]
[313798722,1707729053106,-500.0,0.00022887,2]
[313798723,1707729053115,-500.0,0.00022887,2]
[313798724,1707729053125,-1274.77,0.00022887,2]
[313798725,1707729053134,-500.0,0.00022887,2]
[313798726,1707729053143,-539.78,0.00022887,2]
[313798727,1707729053152,-500.0,0.00022887,2]
[313798728,1707729053162,-2760.41,0.00022887,2]
[313798729,1707729053171,-500.0,0.00022887,2]
[313798730,1707729053180,-500.0,0.00022887,2]
[313798731,1707729053189,-556.69,0.00022887,2]
[313798732,1707729053198,-500.0,0.00022887,2]
[313798733,1707729053209,-515.89,0.00022887,2]
[313798734,1707729053218,-500.0,0.00022887,2]
[313798735,1707729053227,-538.42,0.00022887,2]
[313798736,1707729053236,-737.91888749,0.00022887,2]
[313798737,1707729053358,-2431.61111251,0.00022887,2]
[313798738,1707729053367,-2582.36,0.00022887,2]
[313798739,1707729053377,-808.54,0.00022887,2]
[313798740,1707729053386,-500.0,0.00022887,2]
[313798741,1707729053396,-1361.42,0.00022887,2]
[313798742,1707729053405,-397.88982843,0.00022887,2]
[313798743,1707729053429,-1025.58017157,0.00022887,2]
[313798744,1707729053439,-1697.94,0.00022887,2]
[313798745,1707729053448,-546.02,0.00022887,2]
[313798746,1707729053457,-500.0,0.00022887,2]
[313798747,1707729053466,-758.67,0.00022887,2]
[313798748,1707729053475,-500.0,0.00022887,2]
[313798749,1707729053484,-500.0,0.00022887,2]
[313798750,1707729053493,-500.0,0.00022887,2]
[313798751,1707729053502,-784.76,0.00022887,2]
[313798752,1707729053511,-500.0,0.00022887,2]
[313798753,1707729053521,-1254.11,0.00022887,2]
[313798754,1707729053530,-500.0,0.00022887,2]
[313798755,1707729053539,-3930.35,0.00022887,2]
[313798756,1707729053549,-530.71,0.00022887,2]
[313798757,1707729053558,-1174.69,0.00022887,2]
[313798758,1707729053567,-500.0,0.00022887,2]
[313798759,1707729053576,-500.0,0.00022887,2]
[313798760,1707729053585,-1098.94,0.00022887,2]
[313798761,1707729053594,-500.0,0.00022887,2]
[313798762,1707729053603,-500.0,0.00022887,2]
[313798763,1707729053612,-500.0,0.00022887,2]
[313798764,1707729053621,-500.0,0.00022887,2]
[313798765,1707729053630,-500.0,0.00022887,2]
[313798766,1707729053639,-500.0,0.00022887,2]
[313798767,1707729053649,-500.0,0.00022887,2]
[313798768,1707729053659,-85.8032716,0.00022887,2]
[313798769,1707729053672,-414.1967284,0.00022887,2]
[313798770,1707729053682,-500.0,0.00022887,2]
[313798771,1707729053691,-194.67491326,0.00022887,2]
[313798772,1707729053717,-305.32508674,0.00022887,2]
[313798773,1707729053726,-721.91,0.00022887,2]
[313798774,1707729053735,-348.69927753,0.00022887,2]
[313798775,1707729053747,-446.28923784,0.00022887,2]
[313798777,1707729060716,156.89159203,0.00020596,2]
[313798778,1707729070344,1401.12227429,0.00022198,2]
[313798781,1707729101370,1511.29095241,0.00021741,2]
[313798782,1707729105985,158.86,0.0002201,2]
[313798784,1707729158133,200.0,0.00021843,2]
[313798829,1707729215300,322.47,0.00021832,2]
[313798840,1707729246208,157.17,0.00021796,2]
[313798843,1707729318010,2000.0,0.00021848,2]
[313798844,1707729327988,250.0,0.00021848,2]
[313798845,1707729366778,200.0,0.00021795,2]
[313798846,1707729381840,440.41,0.00021777,2]
[313798847,1707729388711,153.5000963,0.00022372,2]
[313798848,1707729405902,150.0,0.00021729,2]
[313798849,1707729422423,603.28,0.00021742,2]
[313798850,1707729439846,734.98391672,0.00021,2]
[313798851,1707729456730,168.19,0.0002229,2]
[313798852,1707729462791,204.5,0.00019824,2]
[313798853,1707729462979,204.5,0.00022088,2]
[313798854,1707729471514,801.83,0.00021712,2]
[313798855,1707729473772,210.63589063,0.00021,2]
[313798856,1707729538198,171.69,0.00021756,2]
[313798864,1707729583179,160.32,0.00021887,2]
[313798865,1707729583393,160.32,0.00022267,2]
[313798867,1707729610072,308.75,0.00021717,2]
[313798868,1707729643903,173.3,0.00021717,2]
[313798869,1707729684915,266.16475118,0.00021997,2]
[313798870,1707729704694,14853.73,0.00021725,2]
[313798871,1707729714427,750.0,0.00021712,2]
[313798872,1707729753814,203.0,0.00021887,2]
[313798873,1707729801039,484.0,0.00021739,2]
[313798874,1707729806336,250.0,0.00021713,2]
[313798875,1707729814638,520.1,0.00021685,2]
[313798876,1707729886623,24446.0,0.00022386,2]
[313798879,1707729934134,517.37,0.00021689,2]
[313798881,1707729948989,207.57,0.000198,2]
[313798882,1707729949202,207.57,0.00022063,2]
[313798883,1707730032961,316.81,0.00021726,2]
[313798886,1707730096561,512.13,0.00021845,2]
[313798887,1707730096756,512.13,0.00021905,2]
[313798888,1707730096953,512.13,0.00021965,2]
[313798889,1707730097152,512.13,0.00022025,2]
[313798890,1707730097348,512.13,0.00022085,2]
[313798891,1707730097552,512.13,0.00022144,2]
[313798892,1707730097790,512.13,0.00022204,2]
[313798893,1707730098010,512.13,0.00022264,2]
[313798894,1707730098225,512.13,0.00022324,2]
[313798895,1707730098416,512.13,0.00022384,2]
[313798896,1707730111687,158.86,0.00021649,2]
[313798910,1707730201828,150.0,0.000224,2]
[313798921,1707730226511,280.83602721,0.00022399,2]
[313798929,1707730232317,-338.76210274,0.000224,2]
[313798930,1707730232327,-2605.5728343,0.000224,2]
[313798931,1707730232336,-23789.36636957,0.000224,2]
[313798932,1707730232347,-4386.79514914,0.000224,2]
[313798933,1707730232774,1957.34969805,0.00022399,2]
[313798934,1707730234770,-667.00911059,0.000224,2]
[313798935,1707730234885,-4684.09713487,0.000224,2]
[313798936,1707730234896,-5067.87691676,0.00022401,2]
[313798961,1707730238317,-19406.91418709,0.00022401,2]
[313798962,1707730238327,-156.25693925,0.00022401,2]
[313798963,1707730238338,-7433.76384141,0.00022402,2]
[313798964,1707730238348,-1889.27771131,0.00022413,2]
[313798965,1707730238361,-512.13,0.00022444,2]
[313798966,1707730238371,-167.18,0.0002248,2]
[313798967,1707730238380,-512.13,0.00022504,2]
[313798968,1707730238391,-1000.0,0.00022511,2]
[313798969,1707730238401,-675.33,0.00022511,2]
[313798970,1707730238412,-2193.01,0.00022511,2]
[313798971,1707730238421,-1048.42486241,0.00022511,2]
[313798972,1707730238431,-17695.1027,0.00022512,2]
[313798973,1707730238441,-359.3687,0.00022512,2]
[313798974,1707730238453,-172.93245029,0.00022564,3]
[313798975,1707730238463,-512.13,0.00022564,2]
[313798976,1707730238473,-200.0,0.0002257,2]
[313798977,1707730238484,-19244.10222284,0.000226,2]
[313798978,1707730238494,-188.55456331,0.00022603,2]
[313798979,1707730238504,-322.11136418,0.00022608,2]
[313798980,1707730238514,-155.0,0.0002261,2]
[313798981,1707730238524,-694.85885528,0.0002261,2]
[313798982,1707730238546,-858.74623956,0.0002261,2]
[313798983,1707730238557,-390.83555484,0.0002261,2]
[313798984,1707730238569,-3395.54794444,0.0002261,2]
[313798985,1707730238619,-462.2961555,0.0002261,2]
[313798986,1707730239654,-1565.58898442,0.0002261,2]
[313798987,1707730239666,-324.33024351,0.0002261,2]
[313798988,1707730239764,-12115.91602245,0.0002261,2]
[313798989,1707730239774,-500.0,0.0002261,2]
[313798990,1707730239783,-848.71,0.0002261,2]
[313798991,1707730239792,-500.0,0.0002261,2]
[313798992,1707730239802,-500.0,0.0002261,2]
[313798993,1707730239811,-547.38,0.0002261,2]
[313798994,1707730239820,-723.21,0.0002261,2]
[313798995,1707730239829,-6336.17,0.0002261,2]
[313798996,1707730239838,-500.0,0.0002261,2]
[313798997,1707730239847,-678.97,0.0002261,2]
[313798998,1707730239857,-529.37,0.0002261,2]
[313798999,1707730239866,-2975.49,0.0002261,2]
[313799000,1707730239876,-1921.0,0.0002261,2]
[313799001,1707730239885,-2007.89,0.0002261,2]
[313799002,1707730239894,-1356.06,0.0002261,2]
[313799003,1707730239903,-4495.3,0.0002261,2]
[313799004,1707730239913,-1294.73,0.0002261,2]
[313799005,1707730239922,-500.0,0.0002261,2]
[313799006,1707730239931,-1597.12,0.0002261,2]
[313799008,1707730239941,-500.0,0.0002261,2]
[313799010,1707730239952,-500.0,0.0002261,2]
[313799012,1707730239961,-856.66,0.0002261,2]
[313799014,1707730239971,-1878.85,0.0002261,2]
[313799016,1707730239981,-500.0,0.0002261,2]
[313799018,1707730239990,-500.0,0.0002261,2]
[313799020,1707730239999,-517.2,0.0002261,2]
[313799022,1707730240009,-234.31904527,0.0002261,2]
[313799025,1707730240018,-2182.03,0.0002261,2]
[313799027,1707730240028,-500.0,0.0002261,2]
[313799028,1707730240037,-500.0,0.0002261,2]
[313799029,1707730240046,-500.0,0.0002261,2]
[313799030,1707730240055,-500.0,0.0002261,2]
[313799031,1707730240065,-723.68698877,0.0002261,2]
[313799062,1707730241276,-459.46251488,0.0002261,2]
[313799063,1707730241287,-302.64049635,0.0002261,2]
[313799064,1707730241296,-500.0,0.0002261,2]
[313799065,1707730241305,-245.94226665,0.0002261,2]
[313799066,1707730241317,-254.05773335,0.0002261,2]
[313799067,1707730241326,-246.41958945,0.0002261,2]
[313799068,1707730241337,-419.38041055,0.0002261,2]
[313799069,1707730241346,-2291.00474868,0.0002261,2]
[313799070,1707730241357,-347.96609508,0.0002261,2]
[313799071,1707730241604,-7886.07915624,0.0002261,2]
[313799072,1707730241613,-500.0,0.0002261,2]
[313799073,1707730241622,-2287.71,0.0002261,2]
[313799074,1707730241631,-571.2,0.0002261,2]
[313799075,1707730241640,-500.0,0.0002261,2]
[313799076,1707730241650,-2912.11,0.0002261,2]
[313799077,1707730241659,-500.0,0.0002261,2]
[313799078,1707730241668,-500.0,0.0002261,2]
[313799079,1707730241678,-500.0,0.0002261,2]
[313799080,1707730241686,-3599.96,0.0002261,2]
[313799081,1707730241696,-790.33,0.0002261,2]
[313799082,1707730241705,-1594.85,0.0002261,2]
[313799083,1707730241715,-500.0,0.0002261,2]
[313799084,1707730241724,-3023.67,0.0002261,2]
[313799085,1707730241733,-3809.63,0.0002261,2]
[313799086,1707730241742,-2037.86,0.0002261,2]
[313799087,1707730241752,-500.0,0.0002261,2]
[313799088,1707730241761,-1481.35,0.0002261,2]
[313799089,1707730241770,-1815.46,0.0002261,2]
[313799090,1707730241779,-500.0,0.0002261,2]
[313799091,1707730241788,-2956.67,0.0002261,2]
[313799092,1707730241797,-1029.02,0.0002261,2]
[313799093,1707730241806,-597.6,0.0002261,2]
[313799094,1707730241815,-500.0,0.0002261,2]
[313799095,1707730241824,-1077.39,0.0002261,2]
[313799097,1707730241833,-6514.58,0.0002261,2]
[313799099,1707730241842,-500.0,0.0002261,2]
[313799100,1707730241852,-566.35,0.0002261,2]
[313799103,1707730241862,-532.33,0.0002261,2]
[313799105,1707730241871,-500.0,0.0002261,2]
[313799107,1707730241881,-500.0,0.0002261,2]
[313799109,1707730241890,-609.81,0.0002261,2]
[313799111,1707730241899,-500.0,0.0002261,2]
[313799113,1707730241908,-636.18,0.0002261,2]
[313799115,1707730241917,-500.0,0.0002261,2]
[313799117,1707730241926,-157.11933051,0.0002261,2]
[313799119,1707730241935,-500.0,0.0002261,2]
[313799121,1707730241944,-500.0,0.0002261,2]
[313799123,1707730241954,-500.0,0.0002261,2]
[313799125,1707730241963,-2277.76,0.0002261,2]
[313799127,1707730241972,-1007.36,0.0002261,2]
[313799129,1707730241981,-2208.72,0.0002261,2]
[313799131,1707730241990,-500.0,0.0002261,2]
[313799133,1707730241999,-500.0,0.0002261,2]
[313799135,1707730242008,-390.70919656,0.0002261,3]
[313799137,1707730242017,-7137.78062906,0.00022611,2]
[313799139,1707730242027,-500.0,0.00022611,2]
[313799141,1707730242036,-500.0,0.00022611,2]
[313799143,1707730242045,-500.0,0.00022611,2]
[313799145,1707730242054,-500.0,0.00022611,2]
[313799147,1707730242063,-500.0,0.00022611,2]
[313799149,1707730242072,-549.86,0.00022611,2]
[313799151,1707730242085,-500.0,0.00022611,2]
[313799153,1707730242094,-500.0,0.00022611,2]
[313799155,1707730242103,-500.0,0.00022611,2]
[313799157,1707730242112,-500.0,0.00022611,2]
[313799159,1707730242120,-563.04,0.00022611,2]
[313799161,1707730242130,-500.0,0.00022611,2]
[313799162,1707730242139,-561.80113866,0.00022611,2]
[313799163,1707730242148,-500.0,0.00022611,2]
[313799164,1707730242158,-500.0,0.00022611,2]
[313799165,1707730242169,-500.0,0.00022611,2]
[313799166,1707730242178,-500.0,0.00022611,2]
[313799167,1707730242188,-500.0,0.00022611,2]
[313799168,1707730242197,-500.0,0.00022611,2]
[313799169,1707730242207,-500.0,0.00022611,2]
[313799170,1707730242216,-500.0,0.00022611,2]
[313799171,1707730242225,-500.0,0.00022611,2]
[313799172,1707730242234,-500.0,0.00022611,2]
[313799173,1707730242243,-509.97,0.00022611,2]
[313799174,1707730242252,-500.0,0.00022611,2]
[313799175,1707730242261,-500.0,0.00022611,2]
[313799176,1707730242270,-500.0,0.00022611,2]
[313799177,1707730242279,-479.9,0.00022611,2]
[313799178,1707730242288,-500.0,0.00022611,2]
[313799179,1707730242296,-500.0,0.00022611,2]
[313799180,1707730242305,-500.0,0.00022611,2]
[313799181,1707730242314,-500.0,0.00022611,2]
[313799182,1707730242323,-500.0,0.00022611,2]
[313799183,1707730242332,-500.0,0.00022611,2]
[313799184,1707730242341,-500.0,0.00022611,2]
[313799185,1707730242351,-500.0,0.00022611,2]
[313799186,1707730242360,-500.0,0.00022611,2]
[313799187,1707730242369,-500.0,0.00022611,2]
[313799188,1707730242378,-500.0,0.00022611,2]
[313799189,1707730242387,-500.0,0.00022611,2]
[313799190,1707730242396,-500.0,0.00022611,2]
[313799191,1707730242404,-500.0,0.00022611,2]
[313799192,1707730242413,-500.0,0.00022611,2]
[313799193,1707730242422,-500.0,0.00022611,2]
[313799194,1707730242431,-500.0,0.00022611,2]
[313799195,1707730242440,-500.0,0.00022611,2]
[313799196,1707730242449,-500.0,0.00022611,2]
[313799197,1707730242460,-500.0,0.00022611,2]
[313799198,1707730242469,-500.0,0.00022611,2]
[313799199,1707730242477,-500.0,0.00022611,2]
[313799200,1707730242488,-500.0,0.00022611,2]
[313799201,1707730242498,-500.0,0.00022611,2]
[313799202,1707730242507,-500.0,0.00022611,2]
[313799203,1707730242516,-523.56,0.00022611,2]
[313799204,1707730242526,-543.13,0.00022611,2]
[313799205,1707730242535,-561.82,0.00022611,2]
[313799206,1707730242544,-500.0,0.00022611,2]
[313799207,1707730242553,-500.0,0.00022611,2]
[313799208,1707730242562,-520.43,0.00022611,2]
[313799209,1707730242571,-500.0,0.00022611,2]
[313799210,1707730242582,-202.41067162,0.00022611,2]
[313799211,1707730242592,-511.14,0.00022611,2]
[313799212,1707730242601,-500.0,0.00022611,2]
[313799213,1707730242611,-500.0,0.00022611,2]
[313799214,1707730242620,-526.29,0.00022611,2]
[313799215,1707730242629,-500.0,0.00022611,2]
[313799216,1707730242639,-500.0,0.00022611,2]
[313799217,1707730242648,-500.0,0.00022611,2]
[313799218,1707730242657,-500.0,0.00022611,2]
[313799219,1707730242666,-500.0,0.00022611,2]
[313799220,1707730242675,-1667.01,0.00022611,2]
[313799221,1707730242684,-500.0,0.00022611,2]
[313799222,1707730242693,-500.0,0.00022611,2]
[313799223,1707730242703,-543.56,0.00022611,2]
[313799224,1707730242712,-576.25,0.00022611,2]
[313799225,1707730242721,-500.0,0.00022611,2]
[313799226,1707730242731,-500.0,0.00022611,2]
[313799227,1707730242740,-500.0,0.00022611,2]
[313799228,1707730242749,-500.0,0.00022611,2]
[313799229,1707730242758,-641.16,0.00022611,2]
[313799230,1707730242767,-570.46,0.00022611,2]
[313799231,1707730242777,-500.0,0.00022611,2]
[313799232,1707730242786,-500.0,0.00022611,2]
[313799233,1707730242795,-500.0,0.00022611,2]
[313799234,1707730242803,-500.0,0.00022611,2]
[313799235,1707730242813,-500.0,0.00022611,2]
[313799236,1707730242822,-500.0,0.00022611,2]
[313799237,1707730242831,-554.27,0.00022611,2]
[313799238,1707730242840,-517.95,0.00022611,2]
[313799239,1707730242849,-709.35,0.00022611,2]
[313799240,1707730242858,-500.0,0.00022611,2]
[313799241,1707730242867,-500.0,0.00022611,2]
[313799242,1707730242876,-500.0,0.00022611,2]
[313799243,1707730242888,-626.03,0.00022611,2]
[313799244,1707730242897,-573.92,0.00022611,2]
[313799245,1707730242906,-500.0,0.00022611,2]
[313799246,1707730242915,-500.0,0.00022611,2]
[313799247,1707730242924,-500.0,0.00022611,2]
[313799248,1707730242933,-512.66,0.00022611,2]
[313799249,1707730242942,-500.0,0.00022611,2]
[313799250,1707730242951,-862.68,0.00022611,2]
[313799251,1707730242960,-611.32,0.00022611,2]
[313799252,1707730242969,-418.39522884,0.00022611,2]